bitfinex/quotes_SOLUSD_20250219
["timestamp","ask_amount","ask_price","bid_price","bid_amount"]
[1739988772509,0.03,171.4,171.37,26.55536993]
[1739988773303,0.03,171.4,171.38,5.8349]
[1739988774012,0.03,171.4,171.36,108.80076993]
[1739988774201,18.64964886,171.36,171.33,0.063]
[1739988774381,26.55536993,171.34,171.33,0.063]
[1739988774785,49.72501879,171.34,171.33,0.063]
[1739988776093,55.56131879,171.34,171.33,0.063]
[1739988777695,49.72501879,171.34,171.33,0.063]
[1739988777896,55.56131879,171.34,171.33,0.063]
[1739988779623,49.72501879,171.34,171.33,0.063]
[1739988780634,55.56131879,171.34,171.33,0.063]
[1739988781219,57.56131879,171.34,171.33,0.063]
[1739988781424,45.20501879,171.3,171.29,0.063]
[1739988782299,46.20501879,171.3,171.29,0.063]
[1739988782497,26.55536993,171.22,171.18,5.8415]
[1739988782726,18.64964886,171.23,171.18,5.8415]
[1739988782925,45.20501879,171.23,171.18,5.8415]
[1739988783124,26.55536993,171.19,171.17,0.063]
[1739988783416,49.72501879,171.18,171.17,0.063]
[1739988784813,76.28038872,171.18,171.17,0.063]
[1739988785100,6.8424,171.16,171.15,0.0001]
[1739988785310,52.04741879,171.16,171.15,0.0001]
[1739988785614,53.04741879,171.16,171.15,0.0001]
[1739988786195,51.04741879,171.16,171.15,0.0001]
[1739988786395,53.04741879,171.16,171.15,0.0001]
[1739988787235,52.04811879,171.14,171.13,0.063]
[1739988787806,20.64964886,171.13,171.12,0.063]
[1739988788030,47.20501879,171.13,171.12,0.063]
[1739988788628,53.69341879,171.13,171.12,0.063]
[1739988788828,18.64964886,171.11,171.07,0.063]
[1739988789140,24.49484886,171.08,171.07,0.063]
[1739988789305,19.64964886,171.07,170.99,0.03]
[1739988789643,45.20501879,171.0,170.99,0.03]
[1739988789798,49.74501879,171.0,170.99,0.03]
[1739988790246,49.44041879,171.0,170.99,0.03]
[1739988790799,23.18964886,171.0,170.99,0.03]
[1739988790999,49.74501879,171.0,170.99,0.03]
[1739988791204,81.80828872,171.0,170.99,0.03]
[1739988791443,75.96038872,171.0,170.99,0.03]
[1739988791734,1.0,170.99,170.97,0.063]
[1739988791921,27.55536993,170.98,170.97,0.063]
[1739988792127,26.55536993,170.98,170.97,0.063]
[1739988793440,4.54,171.0,170.97,0.063]
[1739988793441,31.09536993,171.0,170.97,0.063]
[1739988793609,26.55536993,170.98,170.97,0.063]
[1739988793949,45.20501879,170.98,170.97,0.063]
[1739988794242,46.20501879,170.98,170.97,0.063]
[1739988794537,19.64964886,170.97,170.95,0.063]
[1739988794740,168.80501879,170.96,170.95,0.063]
[1739988795051,45.20501879,170.96,170.95,0.063]
[1739988795832,49.76501879,170.96,170.95,0.063]
[1739988796516,55.61431879,170.96,170.95,0.063]
[1739988796909,56.61431879,170.96,170.95,0.063]
[1739988797120,144.24964886,170.95,170.83,7.4604]
[1739988797318,18.64964886,170.87,170.83,7.4604]
[1739988798308,18.64964886,170.85,170.81,80.7]
[1739988798515,26.55536993,170.86,170.81,5.8543]
[1739988798516,26.55536993,170.84,170.81,5.8543]
[1739988799124,26.55536993,170.85,170.81,5.8543]
[1739988799332,26.55536993,170.84,170.8,5.8548]
[1739988799535,26.55536993,170.84,170.78,5.8554]
[1739988799737,18.64964886,170.83,170.78,5.8554]
[1739988799947,45.20501879,170.83,170.78,5.8554]
[1739988800752,45.20501879,170.83,170.77,114.82546993]
[1739988800753,46.20501879,170.79,170.77,0.03]
[1739988800910,46.20501879,170.79,170.68,7.3737]
[1739988800911,45.20501879,170.78,170.68,7.3737]
[1739988801116,26.55536993,170.71,170.68,7.3737]
[1739988801359,26.55536993,170.7,170.65,5.8596]
[1739988802043,26.55536993,170.69,170.63,32.41556993]
[1739988802223,26.55536993,170.69,170.65,5.8598]
[1739988802431,26.55536993,170.7,170.65,5.8598]
[1739988802847,18.64964886,170.68,170.63,5.8605]
[1739988803158,45.20501879,170.68,170.6,5.8614]
[1739988803355,45.20501879,170.68,170.58,5.862]
[1739988803954,45.20501879,170.68,170.55,80.7]
[1739988804153,46.20501879,170.68,170.57,5.8626]
[1739988804366,45.20501879,170.68,170.55,80.7]
[1739988804652,49.86501879,170.68,170.56,26.55536993]
[1739988804829,50.86501879,170.68,170.67,233.5590136]
[1739988806036,49.84501879,170.68,170.67,233.5590136]
[1739988806651,4.64,170.68,170.67,233.5590136]
[1739988806855,23.28964886,170.68,170.67,233.5590136]
[1739988807053,26.55536993,170.7,170.67,233.5590136]
[1739988807256,4.68,170.72,170.67,265.97348353]
[1739988807654,18.64964886,170.71,170.67,239.4181136]
[1739988807846,45.20501879,170.71,170.67,233.5590136]
[1739988808161,18.64964886,170.71,170.67,265.97358353]
[1739988808351,18.64964886,170.71,170.67,239.4182136]
[1739988808539,18.64964886,170.71,170.67,265.97358353]
[1739988808865,4.68,170.72,170.68,43.45265809]
[1739988809072,83.0,170.8,170.71,43.45265809]
[1739988809235,43.45265809,170.82,170.71,43.45265809]
[1739988809236,43.45265809,170.78,170.71,43.45265809]
[1739988809437,62.10230695,170.77,170.71,49.31045809]
[1739988809963,62.10230695,170.78,170.72,43.45265809]
[1739988810335,4.68,170.79,170.69,49.31085809]
[1739988810336,62.10230695,170.76,170.69,49.31085809]
[1739988810530,62.10230695,170.74,170.69,5.8582]
[1739988811273,43.45265809,170.76,170.7,43.45265809]
[1739988811563,18.64964886,170.76,170.72,43.45265809]
[1739988811758,18.64964886,170.73,170.69,5.8582]
[1739988811951,62.10230695,170.73,170.67,239.4482136]
[1739988812161,43.45265809,170.75,170.67,239.4482136]
[1739988812354,43.45265809,170.76,170.7,43.45265809]
[1739988812577,62.10230695,170.75,170.69,43.45265809]
[1739988812864,62.10230695,170.75,170.67,254.0963136]
[1739988812865,48.15265809,170.77,170.71,43.45265809]
[1739988813066,4.7,170.77,170.72,43.45265809]
[1739988813281,18.64964886,170.76,170.71,43.45265809]
[1739988813471,62.10230695,170.76,170.69,43.45265809]
[1739988814072,62.10230695,170.74,170.68,49.31155809]
[1739988814240,62.10230695,170.7,170.67,233.5890136]
[1739988814445,62.10230695,170.68,170.67,233.5890136]
[1739988815050,4.7,170.7,170.67,233.5890136]
[1739988815254,4.7,170.7,170.67,239.4482136]
[1739988815492,23.34964886,170.7,170.67,239.4482136]
[1739988815662,4.7,170.7,170.67,282.90087169]
[1739988815857,4.7,170.74,170.68,43.45265809]
[1739988816063,18.64964886,170.73,170.67,282.90087169]
[1739988816365,62.10230695,170.73,170.67,277.04167169]
[1739988816581,62.10230695,170.71,170.67,233.5890136]
[1739988816766,43.45265809,170.69,170.67,233.5890136]
[1739988817268,18.64964886,170.7,170.67,239.4482136]
[1739988817481,43.45265809,170.69,170.67,233.5890136]
[1739988817788,62.10230695,170.7,170.67,233.5890136]
[1739988817984,4.7,170.74,170.67,233.5890136]
[1739988817985,43.45265809,170.72,170.67,233.5890136]
[1739988818312,43.45265809,170.73,170.67,282.90077169]
[1739988818458,62.10230695,170.7,170.67,233.5890136]
[1739988818659,62.10230695,170.68,170.67,233.5890136]
[1739988818884,66.80230695,170.68,170.67,233.5890136]
[1739988822294,10.33139131,170.75,170.67,233.5890136]
[1739988822295,83.0,170.75,170.67,282.90067169]
[1739988822470,48.17265809,170.74,170.68,43.45265809]
[1739988822673,62.10230695,170.73,170.67,282.90067169]
[1739988822992,4.783,170.74,170.7,43.45265809]
[1739988823702,43.45265809,170.71,170.67,233.5890136]
[1739988823993,18.64964886,170.7,170.67,233.5890136]
[1739988825091,43.45265809,170.73,170.67,239.4481136]
[1739988825273,18.64964886,170.72,170.67,233.5890136]
[1739988825473,18.64964886,170.71,170.67,239.4482136]
[1739988825667,62.10230695,170.71,170.67,233.5890136]
[1739988825867,18.64964886,170.69,170.67,233.5890136]
[1739988827311,66.88230695,170.68,170.67,233.5890136]
[1739988827879,23.42964886,170.68,170.67,233.5890136]
[1739988828691,66.88230695,170.68,170.67,233.5890136]
[1739988830891,23.42964886,170.68,170.67,233.5890136]
[1739988831089,4.78,170.68,170.67,233.5890136]
[1739988831311,4.78,170.73,170.67,282.90087169]
[1739988831613,4.78,170.73,170.69,43.45265809]
[1739988831825,18.64964886,170.72,170.68,43.45265809]
[1739988832412,18.64964886,170.72,170.69,5.8585]
[1739988832982,4.78,170.73,170.7,43.45265809]
[1739988833281,18.71264886,170.74,170.7,43.45265809]
[1739988834402,18.71264886,170.74,170.71,5.8578]
[1739988836009,62.16530695,170.74,170.69,5.8585]
[1739988836210,0.063,170.74,170.69,49.31115809]
[1739988836391,0.063,170.74,170.71,5.8578]
[1739988837197,0.063,170.74,170.72,43.45265809]
[1739988837516,0.063,170.74,170.73,43.45265809]
[1739988838015,0.063,170.74,170.73,51.12045809]
[1739988838685,0.063,170.74,170.73,56.97765809]
[1739988839297,0.063,170.74,170.73,13.525]
[1739988839698,0.063,170.74,170.7,80.7]
[1739988840027,43.45265809,170.73,170.69,7.4191]
[1739988840186,43.51565809,170.74,170.69,7.4191]
[1739988840394,0.063,170.74,170.69,50.87175809]
[1739988840616,0.063,170.74,170.7,43.45265809]
[1739988841205,0.063,170.74,170.73,43.45265809]
[1739988841924,4.76,170.82,170.73,125.15265809]
[1739988842219,43.45265809,170.84,170.78,43.45265809]
[1739988842421,43.45265809,170.84,170.79,43.45265809]
[1739988842422,18.64964886,170.84,170.79,43.45265809]
[1739988842616,62.10230695,170.84,170.78,43.45265809]
[1739988842822,18.64964886,170.83,170.78,43.45265809]
[1739988843026,6.4376,170.88,170.78,43.45265809]
[1739988843202,4.78,170.89,170.82,43.45265809]
[1739988843404,18.64964886,170.88,170.83,43.45265809]
[1739988844030,18.64964886,170.88,170.82,43.45265809]
[1739988844400,62.10230695,170.88,170.81,43.45265809]
[1739988844595,62.10230695,170.86,170.8,43.45265809]
[1739988844796,62.10230695,170.86,170.8,49.30745809]
[1739988845009,18.64964886,170.86,170.81,43.45265809]
[1739988845298,43.45265809,170.88,170.81,43.45265809]
[1739988845495,43.45265809,170.91,170.85,43.45265809]
[1739988845712,48.29565809,170.92,170.86,43.45265809]
[1739988845919,62.10230695,170.89,170.84,80.7]
[1739988846527,43.45265809,170.87,170.84,80.7]
[1739988846731,43.45265809,170.87,170.8,150.98285809]
[1739988846901,43.45265809,170.88,170.81,43.45265809]
[1739988847103,0.063,170.86,170.81,43.45265809]
[1739988847296,0.063,170.86,170.82,43.45265809]
[1739988847715,0.063,170.86,170.84,43.45265809]
[1739988848815,0.063,170.86,170.83,43.45265809]
[1739988849008,1.0,170.68,170.67,233.5890136]
[1739988849320,68.32230695,170.68,170.67,60.60720034]
[1739988849504,68.32230695,170.68,170.67,34.66748316]
[1739988849505,79.39986384,170.68,170.67,34.66748316]
[1739988849826,18.64964886,170.66,170.52,83.3477]
[1739988850025,43.45265809,170.56,170.53,5.859]
[1739988850206,5.22,170.6,170.53,5.859]
[1739988850525,43.45265809,170.57,170.53,5.859]
[1739988851233,43.45265809,170.57,170.52,1.6477]
[1739988851799,5.2,170.65,170.54,1.0]
[1739988852003,43.45265809,170.62,170.55,43.45265809]
[1739988852216,43.45265809,170.62,170.55,45.45265809]
[1739988852626,43.45265809,170.62,170.56,1.0]
[1739988853533,43.45265809,170.61,170.56,1.0]
[1739988854051,43.45265809,170.6,170.56,80.7]
[1739988854213,43.45265809,170.58,170.56,80.7]
[1739988854413,43.45265809,170.64,170.56,80.7]
[1739988854414,43.45265809,170.59,170.56,80.7]
[1739988855047,43.45265809,170.57,170.56,80.7]
[1739988855343,43.45265809,170.57,170.52,175.2477]
[1739988855522,18.64964886,170.63,170.52,175.2477]
[1739988855523,43.45265809,170.54,170.52,175.2477]
[1739988855867,18.64964886,170.63,170.52,175.2477]
[1739988855868,43.45265809,170.55,170.52,175.2477]
[1739988856353,5.8611,170.62,170.52,175.2477]
[1739988856354,43.45265809,170.54,170.52,175.2477]
[1739988856539,62.10230695,170.53,170.52,0.03]
[1739988857046,43.45265809,170.53,170.52,0.03]
[1739988857415,62.10230695,170.53,170.52,0.03]
[1739988858242,43.45265809,170.53,170.52,0.03]
[1739988859140,62.10230695,170.53,170.52,0.03]
[1739988859512,67.96630695,170.53,170.52,0.03]
[1739988859927,62.10230695,170.53,170.52,0.03]
[1739988860128,43.45265809,170.53,170.52,0.03]
[1739988860947,49.31665809,170.53,170.52,0.03]
[1739988861158,43.45265809,170.53,170.52,0.03]
[1739988861548,49.31665809,170.53,170.52,0.03]
[1739988862429,49.31665809,170.53,170.49,0.03]
[1739988862664,43.45265809,170.5,170.49,0.03]
[1739988863934,43.45265809,170.51,170.49,0.03]
[1739988865148,5.863,170.56,170.49,0.03]
[1739988865660,43.45265809,170.54,170.49,0.03]
[1739988865959,43.45265809,170.52,170.49,0.03]
[1739988866145,5.8647,170.51,170.49,0.03]
[1739988866530,49.31735809,170.51,170.49,0.03]
[1739988866957,5.8647,170.51,170.49,0.03]
[1739988867128,49.31735809,170.51,170.49,0.03]
[1739988867335,43.45265809,170.52,170.49,0.03]
[1739988867659,49.31725809,170.52,170.49,0.03]
[1739988867956,43.45265809,170.51,170.49,0.03]
[1739988868164,49.31775809,170.5,170.49,0.03]
[1739988868456,49.31775809,170.5,170.49,0.0001]
[1739988868660,67.96740695,170.5,170.49,0.0001]
[1739988869664,49.31775809,170.5,170.49,0.0001]
[1739988871160,5.8651,170.5,170.46,43.45265809]
[1739988871359,49.31735809,170.52,170.46,124.15265809]
[1739988872944,43.45265809,170.51,170.46,80.7]
[1739988873247,43.45265809,170.49,170.46,80.7]
[1739988873766,43.45265809,170.47,170.46,80.7]
[1739988874272,43.45265809,170.49,170.46,80.7]
[1739988874571,49.31775809,170.5,170.46,80.7]
[1739988874782,5.8651,170.5,170.46,80.7]
[1739988875265,49.31775809,170.5,170.46,80.7]
[1739988876369,43.45265809,170.52,170.46,124.15265809]
[1739988876558,49.31715809,170.52,170.46,124.15265809]
[1739988876761,49.31715809,170.52,170.46,80.7]
[1739988877273,43.45265809,170.5,170.46,80.7]
[1739988878279,43.45265809,170.51,170.46,80.7]
[1739988878456,43.45265809,170.53,170.47,7.873]
[1739988878654,14.6572,170.57,170.47,7.873]
[1739988878655,26.7966371,170.54,170.48,26.7966371]
[1739988878864,26.7966371,170.53,170.48,80.7]
[1739988879383,5.863,170.56,170.5,26.7966371]
[1739988879557,26.7966371,170.56,170.5,26.7966371]
[1739988879757,5.8628,170.57,170.49,1.0]
[1739988879758,32.6594371,170.57,170.51,26.7966371]
[1739988879953,26.7966371,170.57,170.5,27.7966371]
[1739988880173,26.7966371,170.57,170.51,26.7966371]
[1739988880379,5.862,170.59,170.51,26.7966371]
[1739988880563,26.7966371,170.56,170.51,80.7]
[1739988881886,26.7966371,170.53,170.51,80.7]
[1739988882567,26.7966371,170.55,170.51,80.7]
[1739988882975,26.7966371,170.57,170.51,113.3613371]
[1739988883554,0.063,170.53,170.51,113.3613371]
[1739988884060,0.063,170.53,170.51,86.5647]
[1739988884264,0.063,170.53,170.51,80.7]
[1739988885558,26.7966371,170.52,170.49,0.03]
[1739988885759,26.7966371,170.51,170.49,0.03]
[1739988887586,26.7966371,170.52,170.49,0.03]
[1739988887762,26.7966371,170.5,170.49,0.03]
[1739988889085,32.6617371,170.5,170.49,0.03]
[1739988889688,32.6617371,170.5,170.44,80.7]
[1739988889887,26.7966371,170.46,170.44,80.7]
[1739988890397,5.8651,170.5,170.44,80.7]
[1739988890696,26.7966371,170.46,170.44,80.7]
[1739988891259,26.7966371,170.46,170.42,1.6468]
[1739988891456,26.7966371,170.46,170.38,80.7]
[1739988891457,3.257131,170.44,170.38,80.7]
[1739988891661,26.7966371,170.4,170.38,80.7]
[1739988891887,26.7966371,170.41,170.38,80.7]
[1739988892395,26.7966371,170.43,170.38,87.569]
[1739988892898,26.7966371,170.43,170.38,113.3656371]
[1739988893264,26.7966371,170.43,170.38,66.15256253]
[1739988893486,26.7966371,170.42,170.38,60.28356253]
[1739988893891,26.7966371,170.42,170.38,66.15266253]
[1739988894194,26.7966371,170.42,170.38,60.28356253]
[1739988895361,26.7966371,170.42,170.38,62.89553153]
[1739988895562,5.8647,170.51,170.4,26.7966371]
[1739988895785,26.7966371,170.47,170.42,26.7966371]
[1739988895983,26.7966371,170.46,170.41,26.7966371]
[1739988896189,26.7966371,170.46,170.4,83.82306863]
[1739988896989,26.7966371,170.45,170.4,89.69156863]
[1739988897185,26.7966371,170.45,170.4,83.82306863]
[1739988897593,26.7966371,170.46,170.41,5.8682]
[1739988897764,23.70964886,170.5,170.43,26.7966371]
[1739988897765,26.7966371,170.48,170.43,26.7966371]
[1739988897966,26.7966371,170.49,170.43,26.7966371]
[1739988900696,26.7966371,170.44,170.41,57.02643153]
[1739988901576,26.7966371,170.43,170.41,57.02643153]
[1739988901797,26.7966371,170.42,170.38,57.05643153]
[1739988902094,26.7966371,170.4,170.38,57.05643153]
[1739988902395,26.7966371,170.44,170.38,89.72226863]
[1739988902571,26.7966371,170.45,170.38,89.72226863]
[1739988902977,26.7966371,170.44,170.38,89.72226863]
[1739988903184,3.0,170.41,170.38,0.03]
[1739988903366,26.7966371,170.39,170.38,57.05643153]
[1739988903580,26.7966371,170.39,170.38,0.03]
[1739988904800,45.44628596,170.39,170.38,0.03]
[1739988905565,18.64964886,170.38,170.28,57.02643153]
[1739988905791,26.7966371,170.29,170.26,57.02643153]
[1739988905999,26.7966371,170.31,170.26,62.89963153]
[1739988906187,5.08,170.32,170.26,60.89963153]
[1739988906373,5.08,170.32,170.28,26.7966371]
[1739988906578,26.7966371,170.37,170.31,26.7966371]
[1739988906801,26.7966371,170.41,170.34,26.7966371]
[1739988907094,10.9467,170.46,170.36,26.7966371]
[1739988907295,5.08,170.46,170.39,26.7966371]
[1739988907505,31.8766371,170.46,170.4,26.7966371]
[1739988907667,26.7966371,170.47,170.41,26.7966371]
[1739988908017,26.7966371,170.49,170.42,26.7966371]
[1739988908301,26.7966371,170.45,170.41,55.02643153]
[1739988908606,18.71264886,170.51,170.41,81.82306863]
[1739988908804,0.063,170.51,170.41,55.02643153]
[1739988908984,26.7966371,170.48,170.42,26.7966371]
[1739988909296,26.7966371,170.48,170.42,32.6643371]
[1739988909607,26.7966371,170.48,170.41,81.82306863]
[1739988909783,26.7966371,170.45,170.41,55.02643153]
[1739988910503,26.7966371,170.46,170.41,55.02643153]
[1739988910677,18.71264886,170.51,170.41,55.02643153]
[1739988910678,26.7966371,170.49,170.43,26.7966371]
[1739988911005,26.7966371,170.45,170.43,55.02643153]
[1739988911212,0.063,170.45,170.41,26.7966371]
[1739988911520,0.063,170.45,170.4,62.50563153]
[1739988911521,0.063,170.45,170.44,1.0]
[1739988911810,0.063,170.51,170.46,2.0]
[1739988911983,0.063,170.51,170.48,1.0]
[1739988912192,0.063,170.51,170.49,1.0]
[1739988912514,0.063,170.51,170.5,26.7966371]
[1739988912675,0.063,170.51,170.5,81.82306863]
[1739988913501,0.063,170.51,170.47,26.7966371]
[1739988913707,26.7966371,170.49,170.46,55.02643153]
[1739988913908,26.7966371,170.47,170.42,55.02643153]
[1739988914089,18.64964886,170.48,170.42,55.02643153]
[1739988914802,26.7966371,170.44,170.42,55.02643153]
[1739988914999,18.64964886,170.48,170.38,55.05643153]
[1739988915182,26.7966371,170.44,170.38,55.05643153]
[1739988915394,26.7966371,170.44,170.38,60.92553153]
[1739988915587,26.7966371,170.44,170.38,87.72216863]
[1739988915794,26.7966371,170.45,170.39,26.7966371]
[1739988916474,26.7966371,170.48,170.42,26.7966371]
[1739988916805,43.5767412,170.48,170.42,98.60317273]
[1739988916972,43.5767412,170.5,170.44,43.5767412]
[1739988917177,43.5767412,170.49,170.42,98.60317273]
[1739988917572,43.5767412,170.49,170.43,5.8675]
[1739988917777,43.5767412,170.5,170.43,49.4442412]
[1739988917977,43.5767412,170.5,170.44,43.5767412]
[1739988918423,43.5767412,170.49,170.43,43.5767412]
[1739988918880,43.5767412,170.45,170.42,55.02643153]
[1739988919377,43.5767412,170.44,170.38,104.50207273]
[1739988919572,48.6767412,170.48,170.41,43.5767412]
[1739988919783,43.5767412,170.47,170.41,43.5767412]
[1739988920484,43.5767412,170.5,170.44,43.5767412]
[1739988920806,0.063,170.51,170.47,43.5767412]
[1739988921186,140.21453593,170.61,170.47,43.5767412]
[1739988921187,8.87922811,170.66,170.61,1.0]
[1739988921409,8.87922811,170.66,170.62,51.4376412]
[1739988921605,8.87922811,170.66,170.64,2.0]
[1739988921809,0.063,170.67,170.66,2.0]
[1739988921996,0.063,170.67,170.66,57.02643153]
[1739988922196,0.063,170.67,170.66,99.60317273]
[1739988922584,0.063,170.67,170.66,98.60317273]
[1739988923309,0.063,170.69,170.67,1.0]
[1739988923528,0.063,170.71,170.69,2.0]
[1739988923687,0.0001,170.71,170.7,87.1534824]
[1739988923886,0.0001,170.71,170.7,99.60317273]
[1739988924086,0.0001,170.71,170.7,98.60317273]
[1739988924403,0.0001,170.71,170.7,142.17991393]
[1739988924710,0.0001,170.71,170.7,98.60317273]
[1739988925084,0.0001,170.71,170.7,100.60317273]
[1739988925281,0.0001,170.71,170.7,144.17991393]
[1739988925481,0.0001,170.74,170.73,1.0]
[1739988925680,0.0001,170.74,170.73,143.17991393]
[1739988925920,0.0001,170.74,170.73,142.17991393]
[1739988926319,0.0001,170.74,170.73,143.17991393]
[1739988926507,0.0001,170.74,170.73,236.21991393]
[1739988926985,0.0001,170.74,170.73,191.64317273]
[1739988927615,0.0001,170.74,170.73,197.50037273]
[1739988927814,0.0001,170.74,170.73,241.07711393]
[1739988928205,0.0001,170.74,170.73,197.50037273]
[1739988929916,0.0001,170.74,170.73,104.46037273]
[1739988930963,0.0001,170.74,170.73,148.03711393]
[1739988931118,43.6397412,170.85,170.73,162.68011393]
[1739988931313,0.063,170.85,170.81,43.5767412]
[1739988932115,0.063,170.85,170.82,43.5767412]
[1739988932346,0.063,170.85,170.83,43.5767412]
[1739988932510,0.063,170.85,170.82,43.5767412]
[1739988933439,0.063,170.85,170.84,43.5767412]
[1739988933610,0.063,170.85,170.84,98.60317273]
[1739988934539,0.063,170.85,170.84,55.02643153]
[1739988935151,43.6397412,170.85,170.78,136.5367412]
[1739988935359,43.5767412,170.84,170.78,136.5367412]
[1739988935861,43.6397412,170.85,170.78,142.3921412]
[1739988936150,43.6397412,170.85,170.79,43.5767412]
[1739988936358,0.063,170.85,170.81,43.5767412]
[1739988937035,43.5767412,170.82,170.78,92.96]
[1739988937352,43.5767412,170.81,170.78,92.96]
[1739988937721,43.5767412,170.8,170.78,92.96]
[1739988938660,43.5767412,170.79,170.78,92.96]
[1739988939260,43.5767412,170.79,170.74,55.02643153]
[1739988939431,43.5767412,170.77,170.74,55.02643153]
[1739988940033,43.5767412,170.78,170.74,55.02643153]
[1739988940463,49.4326412,170.77,170.73,0.03]
[1739988940661,43.5767412,170.74,170.73,0.03]
[1739988940954,43.5767412,170.76,170.73,0.03]
[1739988941733,43.5767412,170.75,170.73,0.03]
[1739988941954,43.5767412,170.74,170.73,0.03]
[1739988942737,26.73940417,170.74,170.73,0.03]
[1739988943859,45.38905303,170.74,170.73,0.03]
[1739988944155,26.73940417,170.74,170.73,0.03]
[1739988944353,31.93940417,170.77,170.73,0.03]
[1739988944566,5.2,170.77,170.73,0.03]
[1739988944758,50.58905303,170.77,170.73,0.03]
[1739988944950,56.44485303,170.77,170.73,0.03]
[1739988945586,26.73940417,170.76,170.73,0.03]
[1739988946536,45.38905303,170.75,170.73,0.03]
[1739988946737,26.73940417,170.74,170.73,0.03]
[1739988946974,45.38905303,170.74,170.73,0.03]
[1739988948042,51.24585303,170.74,170.73,0.03]
[1739988948944,24.50644886,170.74,170.73,0.03]
[1739988949364,0.063,170.76,170.73,0.03]
[1739988949746,26.80240417,170.76,170.73,0.03]
[1739988949949,5.9192,170.76,170.73,0.03]
[1739988950154,0.063,170.76,170.73,0.03]
[1739988950479,0.063,170.76,170.73,81.7958357]
[1739988950640,0.063,170.76,170.73,98.48017158]
[1739988950847,0.063,170.76,170.73,55.05643153]
[1739988951370,0.063,170.76,170.73,98.48017158]
[1739988951549,0.063,170.76,170.74,43.42374005]
[1739988952180,0.063,170.76,170.73,98.48017158]
[1739988952487,0.063,170.76,170.73,55.05643153]
[1739988953385,0.063,170.76,170.73,104.33727158]
[1739988954284,0.063,170.76,170.73,55.05643153]
[1739988956583,0.063,170.76,170.75,43.42374005]
[1739988957153,0.063,170.76,170.74,43.42374005]
[1739988958788,0.063,170.76,170.73,55.05643153]
[1739988959281,0.063,170.76,170.73,98.48017158]
[1739988959657,0.063,170.76,170.74,43.42374005]
[1739988959863,0.063,170.76,170.75,43.42374005]
[1739988960072,0.063,170.76,170.75,98.45017158]
[1739988960584,0.063,170.76,170.75,104.30667158]
[1739988961883,0.063,170.77,170.75,105.30667158]
[1739988962065,0.063,170.77,170.76,43.42374005]
[1739988962271,0.063,170.85,170.77,1.0]
[1739988962474,0.063,170.85,170.83,43.42374005]
[1739988962767,0.063,170.85,170.83,98.45017158]
[1739988962978,0.063,170.85,170.83,55.02643153]
[1739988963290,43.48674005,170.85,170.83,55.02643153]
[1739988963782,43.42374005,170.84,170.78,55.02643153]
[1739988963967,43.42374005,170.8,170.76,5.87]
[1739988964284,43.42374005,170.78,170.76,60.89643153]
[1739988964487,43.42374005,170.78,170.76,5.87]
[1739988964871,43.42374005,170.78,170.75,5.87]
[1739988965184,62.07338891,170.76,170.73,5.9]
[1739988965374,5.08,170.78,170.73,5.9]
[1739988965375,62.07338891,170.74,170.73,0.03]
[1739988965867,43.42374005,170.76,170.73,0.03]
[1739988966299,126.42374005,170.77,170.73,0.03]
[1739988966504,48.50374005,170.78,170.73,55.05643153]
[1739988966667,5.08,170.78,170.74,43.42374005]
[1739988967178,49.27774005,170.83,170.77,43.42374005]
[1739988967380,49.27774005,170.83,170.77,98.45017158]
[1739988967988,4.97,170.84,170.79,43.42374005]
[1739988968191,4.97,170.84,170.8,43.42374005]
[1739988968377,4.97,170.84,170.81,43.42374005]
[1739988968574,0.063,170.85,170.82,43.42374005]
[1739988969370,0.063,170.85,170.84,43.42374005]
[1739988969569,0.063,170.85,170.83,43.42374005]
[1739988969785,0.063,170.85,170.82,98.45017158]
[1739988969999,0.063,170.85,170.82,55.02643153]
[1739988970384,0.063,170.85,170.81,43.42374005]
[1739988970707,0.063,170.85,170.81,26.69686345]
[1739988970891,0.063,170.85,170.83,26.69686345]
[1739988971080,0.063,170.85,170.84,26.69686345]
[1739988971284,0.063,170.86,170.85,1.0]
[1739988971475,0.063,170.86,170.85,55.02643153]